bitfinex-derivatives/quotes_BTCF0:USTF0_20251002
["timestamp","ask_amount","ask_price","bid_price","bid_amount"]
[1759364165660,1.33167154,119150.0,119140.0,0.09555606]
[1759364167159,1.33167154,119150.0,119140.0,0.07224606]
[1759364167356,1.33167154,119150.0,119140.0,6e-08]
[1759364167357,2.12249927,119150.0,119140.0,6e-08]
[1759364167555,0.0838995,119130.0,119120.0,0.01289]
[1759364167752,0.87768415,119130.0,119120.0,0.01289]
[1759364168356,1.59928415,119130.0,119120.0,0.01289]
[1759364168564,1.23848415,119130.0,119120.0,0.01289]
[1759364168760,1.23848415,119130.0,119120.0,0.0362]
[1759364168961,0.87104521,119130.0,119120.0,0.0362]
[1759364169363,0.86097365,119130.0,119120.0,0.0362]
[1759364170066,0.86797365,119130.0,119120.0,0.0362]
[1759364170263,1.22877365,119130.0,119120.0,0.0362]
[1759364171062,0.0025,119150.0,119140.0,0.0362]
[1759364171262,0.0025,119150.0,119140.0,1.21564526]
[1759364171462,0.0025,119150.0,119140.0,1.70886508]
[1759364172364,0.4446611,119190.0,119180.0,0.0362]
[1759364172564,0.6578611,119190.0,119180.0,0.0362]
[1759364172763,0.6639875,119190.0,119180.0,0.0362]
[1759364173966,0.6689875,119190.0,119180.0,0.0402]
[1759364174864,0.0838643,119180.0,119170.0,0.01289]
[1759364175167,0.4446643,119180.0,119170.0,0.01289]
[1759364175369,0.4446643,119180.0,119170.0,0.0362]
[1759364175765,1.2574643,119180.0,119170.0,0.0362]
[1759364175966,1.2624643,119180.0,119170.0,0.0462]
[1759364176470,1.2694643,119180.0,119170.0,0.0572]
[1759364179071,1.2693443,119180.0,119170.0,0.0572]
[1759364179271,0.4566643,119180.0,119170.0,0.0572]
[1759364179576,1.2573443,119180.0,119170.0,0.0362]
[1759364180375,0.45780346,119200.0,119180.0,0.01293]
[1759364180376,0.4446538,119200.0,119180.0,0.01293]
[1759364180678,0.4446538,119200.0,119190.0,1.21394016]
[1759364180679,0.58750338,119200.0,119190.0,1.21394016]
[1759364180874,0.56564,119200.0,119190.0,1.21394016]
[1759364181179,0.56564,119200.0,119190.0,1.3075127]
[1759364181380,0.09006666,119210.0,119200.0,0.0838502]
[1759364181673,0.09006666,119210.0,119200.0,0.9484156]
[1759364181874,0.46722799,119230.0,119220.0,0.03624]
[1759364182077,1.30150871,119230.0,119220.0,0.03624]
[1759364182470,0.94697934,119230.0,119220.0,0.03624]
[1759364182675,0.92438155,119230.0,119220.0,0.03624]
[1759364183077,0.93038155,119230.0,119220.0,0.04024]
[1759364183578,0.93030155,119230.0,119220.0,0.4848762]
[1759364183879,0.93030155,119230.0,119220.0,0.40104]
[1759364184070,1.02549175,119230.0,119220.0,0.40604]
[1759364184474,1.38629175,119230.0,119220.0,0.02255]
[1759364184679,1.38629175,119230.0,119210.0,0.01355]
[1759364184680,0.0838362,119220.0,119210.0,0.01355]
[1759364184876,0.0838432,119210.0,119200.0,0.01355]
[1759364185077,1.2571232,119210.0,119200.0,0.01355]
[1759364185275,0.0838503,119200.0,119190.0,0.01293]
[1759364185477,0.4446503,119200.0,119190.0,0.01293]
[1759364186078,0.4446503,119200.0,119190.0,0.03562]
[1759364186474,0.4606503,119200.0,119190.0,0.03962]
[1759364186674,0.4746503,119200.0,119190.0,0.04162]
[1759364187379,0.4446503,119200.0,119190.0,0.03562]
[1759364188878,0.4486503,119200.0,119190.0,0.05062]
[1759364189280,0.4486503,119200.0,119190.0,0.03562]
[1759364189580,0.4566503,119200.0,119190.0,0.03862]
[1759364190581,1.2689303,119200.0,119190.0,0.03862]
[1759364192875,0.9081303,119200.0,119190.0,0.03862]
[1759364193074,0.012,119200.0,119190.0,1.34610023]
[1759364193280,0.8242,119200.0,119190.0,1.34610023]
[1759364193482,0.9080502,119200.0,119190.0,1.26224303]
[1759364194281,0.9080502,119200.0,119190.0,1.34610023]
[1759364194482,0.9080502,119200.0,119190.0,1.26224303]
[1759364199383,0.9080502,119200.0,119190.0,0.12749017]
[1759364199583,1.2688502,119200.0,119190.0,0.01593]
[1759364202688,1.2688502,119200.0,119190.0,0.03862]
[1759364202888,1.2685302,119200.0,119190.0,0.03862]
[1759364203087,0.4566502,119200.0,119190.0,0.03862]
[1759364203281,0.4566502,119200.0,119190.0,0.41257286]
[1759364203487,0.0958502,119200.0,119190.0,0.77337286]
[1759364203683,0.9077302,119200.0,119190.0,0.86908014]
[1759364203884,0.9077302,119200.0,119190.0,0.49512728]
[1759364204382,0.0958502,119200.0,119190.0,0.49512728]
[1759364204594,0.9076902,119200.0,119190.0,0.53432728]
[1759364206390,0.0958502,119200.0,119190.0,0.53432728]
[1759364206591,0.9076902,119200.0,119190.0,0.53432728]
[1759364207691,1.2684902,119200.0,119190.0,0.01593]
[1759364207892,1.2684902,119200.0,119190.0,0.01621]
[1759364208081,0.4566502,119200.0,119190.0,0.01621]
[1759364208385,1.2683702,119200.0,119190.0,0.01621]
[1759364208584,1.2683702,119200.0,119190.0,0.03893]
[1759364208988,0.9075702,119200.0,119190.0,0.03893]
[1759364209187,0.9075702,119200.0,119190.0,0.41288286]
[1759364209890,0.0958502,119200.0,119190.0,0.41288286]
[1759364210191,0.9075302,119200.0,119190.0,0.41288286]
[1759364210788,1.2683302,119200.0,119190.0,0.03893]
[1759364211289,0.9075302,119200.0,119190.0,0.41288286]
[1759364211484,0.9075302,119200.0,119190.0,0.03893]
[1759364211683,1.2683302,119200.0,119190.0,0.03893]
[1759364214090,1.2683302,119200.0,119190.0,0.01621]
[1759364214595,1.2683302,119200.0,119190.0,0.03893]
[1759364215087,0.4566502,119200.0,119190.0,0.03893]
[1759364215287,0.0958502,119200.0,119190.0,0.1227873]
[1759364215492,0.9074102,119200.0,119190.0,0.41288286]
[1759364215890,0.9074102,119200.0,119190.0,0.03893]
[1759364216196,0.9074102,119200.0,119190.0,0.50923758]
[1759364216396,0.9074102,119200.0,119190.0,0.03893]
[1759364216588,1.2682102,119200.0,119190.0,0.50923758]
[1759364216783,1.2682102,119200.0,119190.0,0.01621]
[1759364216990,1.2682102,119200.0,119190.0,0.03893]
[1759364217596,1.2682102,119200.0,119190.0,0.50923758]
[1759364217794,0.0958502,119200.0,119190.0,0.50923758]
[1759364218099,1.2681702,119200.0,119190.0,0.50923758]
[1759364219193,0.0958502,119200.0,119190.0,0.59309488]
[1759364219396,0.9072902,119200.0,119190.0,0.59309488]
[1759364220195,0.9072902,119200.0,119190.0,0.50923758]
[1759364220399,1.2680902,119200.0,119190.0,0.50923758]
[1759364221694,0.9072902,119200.0,119190.0,0.50923758]
[1759364222298,0.9071702,119200.0,119190.0,0.50923758]
[1759364223501,1.2679702,119200.0,119190.0,0.50923758]
[1759364223810,1.2679702,119200.0,119190.0,0.03893]
[1759364224396,1.6679702,119200.0,119190.0,0.01621]
[1759364227209,1.6679702,119200.0,119190.0,0.003]
[1759364227398,0.8566502,119200.0,119190.0,0.003]
[1759364227603,1.6677702,119200.0,119190.0,0.003]
[1759364228006,1.6677702,119200.0,119190.0,0.01621]
[1759364228505,1.6677702,119200.0,119190.0,0.03893]
[1759364228704,1.6677702,119200.0,119190.0,0.01621]
[1759364229408,1.6677302,119200.0,119190.0,0.01621]
[1759364230207,1.6677302,119200.0,119190.0,0.03893]
[1759364230603,0.8566502,119200.0,119190.0,0.03893]
[1759364230806,1.2676502,119200.0,119190.0,0.50923758]
[1759364231008,0.4566502,119200.0,119190.0,0.50923758]
[1759364231313,1.2676502,119200.0,119190.0,0.50923758]
[1759364231605,0.0019334,119200.0,119190.0,1.50885066]
[1759364232210,0.7702134,119200.0,119190.0,1.50885066]
[1759364232606,0.8128934,119200.0,119190.0,1.50885066]
[1759364232809,0.0019334,119200.0,119190.0,1.59274679]
[1759364233410,0.0019334,119200.0,119190.0,1.12243921]
[1759364233708,0.0019334,119200.0,119190.0,1.59274679]
[1759364237801,0.81068,119220.0,119210.0,0.1201132]
[1759364238107,0.15829553,119230.0,119220.0,0.03627]
[1759364238306,0.96893553,119230.0,119220.0,0.50657758]
[1759364239206,0.15829553,119230.0,119220.0,0.50657758]
[1759364239407,0.96893553,119230.0,119220.0,0.50657758]
[1759364240013,0.97393553,119230.0,119220.0,0.50957758]
[1759364240807,0.96893553,119230.0,119220.0,0.50657758]
[1759364241012,0.97393553,119230.0,119220.0,0.52957758]
[1759364241712,0.16329553,119230.0,119220.0,0.52957758]
[1759364241913,0.97381553,119230.0,119220.0,0.52957758]
[1759364243215,0.97377553,119230.0,119220.0,0.52957758]
[1759364243614,0.16459553,119230.0,119220.0,0.52957758]
[1759364243820,0.97503553,119230.0,119220.0,0.52957758]
[1759364246220,0.97503553,119230.0,119220.0,0.66089982]
[1759364247415,0.16459553,119230.0,119220.0,1.04555093]
[1759364247620,0.97491553,119230.0,119220.0,0.74473602]
[1759364247811,0.09639983,119230.0,119220.0,1.45669137]
[1759364248014,0.90671983,119230.0,119220.0,1.54052757]
[1759364248213,0.90671983,119230.0,119220.0,1.15587646]
[1759364248613,0.90671983,119230.0,119220.0,1.54052757]
[1759364248811,0.90671983,119230.0,119220.0,1.90132757]
[1759364250524,0.90671983,119230.0,119220.0,1.81749137]
[1759364251119,1.30671983,119230.0,119220.0,0.03693]
[1759364251320,1.96833474,119230.0,119220.0,0.33774491]
[1759364251818,1.68825588,119230.0,119220.0,0.33774491]
[1759364252019,1.68825588,119230.0,119220.0,0.63855982]
[1759364253316,1.68825588,119230.0,119220.0,0.33774491]
[1759364253620,1.68825588,119230.0,119220.0,0.03693]
[1759364254022,1.98907079,119230.0,119220.0,0.023]
[1759364254216,1.68825588,119230.0,119220.0,0.023]
[1759364255425,0.0838431,119210.0,119200.0,0.01393]
[1759364255721,1.2546431,119210.0,119200.0,0.01393]
[1759364256117,1.6154431,119210.0,119200.0,0.01393]
[1759364256320,0.0838501,119200.0,119190.0,0.07265808]
[1759364256516,0.4446501,119200.0,119190.0,0.56466725]
[1759364256716,0.4446501,119200.0,119190.0,0.50521917]
[1759364257821,0.4496501,119200.0,119190.0,0.53221917]
[1759364258022,0.4636501,119200.0,119190.0,0.53721917]
[1759364258525,0.4636501,119200.0,119190.0,0.04521]
[1759364258726,0.8636501,119200.0,119190.0,0.032]
[1759364259112,1.6735301,119200.0,119190.0,0.53779917]
[1759364259525,0.9127301,119200.0,119190.0,0.53779917]
[1759364259724,0.98044105,119200.0,119190.0,0.89859917]
[1759364259916,0.9127301,119200.0,119190.0,0.89859917]
[1759364260720,0.9127301,119200.0,119190.0,0.53779917]
[1759364261515,1.2735301,119200.0,119190.0,0.53779917]
[1759364261715,1.2735301,119200.0,119190.0,0.04579]
[1759364262125,1.6735301,119200.0,119190.0,0.04579]
[1759364263822,0.8636501,119200.0,119190.0,0.06761]
[1759364264024,1.74081925,119200.0,119190.0,0.53779917]
[1759364264219,1.74081925,119200.0,119190.0,0.06761]
[1759364264426,1.74077925,119200.0,119190.0,0.06761]
[1759364267122,1.74077925,119200.0,119190.0,0.53779917]
[1759364267323,1.74069925,119200.0,119190.0,0.53779917]
[1759364267724,1.74065925,119200.0,119190.0,0.06761]
[1759364268028,0.93105925,119200.0,119190.0,0.06761]
[1759364268224,1.74065925,119200.0,119190.0,0.06761]
[1759364268422,0.97981925,119200.0,119190.0,0.53779917]
[1759364268623,1.34061925,119200.0,119190.0,0.53779917]
[1759364268928,1.34061925,119200.0,119190.0,0.04579]
[1759364269724,0.53105925,119200.0,119190.0,0.06771]
[1759364269929,1.34061925,119200.0,119190.0,0.53789917]
[1759364270125,0.17025925,119200.0,119190.0,0.53789917]
[1759364270321,0.97973925,119200.0,119190.0,0.53789917]
[1759364270723,1.34053925,119200.0,119190.0,0.53789917]
[1759364270922,1.34053925,119200.0,119190.0,0.06771]
[1759364272630,1.34045925,119200.0,119190.0,0.06771]
[1759364273326,1.34045925,119200.0,119190.0,0.04579]
[1759364273528,1.82787327,119200.0,119190.0,0.032]
[1759364273730,2.22787327,119200.0,119190.0,0.032]
[1759364274122,2.22787327,119200.0,119190.0,1e-07]
[1759364275126,0.0838572,119190.0,119180.0,7.218e-05]
[1759364275325,0.91484637,119190.0,119180.0,7.218e-05]
[1759364275532,1.31484637,119190.0,119180.0,7.218e-05]
[1759364275729,1.31484637,119190.0,119160.0,0.07322863]
[1759364275730,0.0838712,119170.0,119160.0,0.07322863]
[1759364276029,0.0838783,119160.0,119150.0,0.07262863]
[1759364276232,0.84636153,119160.0,119150.0,0.07262863]
[1759364276430,0.4446783,119160.0,119150.0,0.07262863]
[1759364276732,0.44475048,119160.0,119150.0,0.07262863]
[1759364276926,0.44475048,119160.0,119150.0,0.05943863]
[1759364277330,0.0838855,119150.0,119140.0,0.47431186]
[1759364277532,1.2539255,119150.0,119140.0,0.49623186]
[1759364277832,1.2539255,119150.0,119140.0,0.43679323]
[1759364278031,1.26530138,119150.0,119140.0,0.49615488]
[1759364278332,1.26530138,119150.0,119140.0,0.09447165]
[1759364278634,1.26530138,119150.0,119140.0,0.01319]
[1759364279129,1.26526138,119150.0,119140.0,0.01319]
[1759364279333,1.30526138,119150.0,119140.0,0.01319]
[1759364279526,1.28426138,119150.0,119140.0,0.01319]
[1759364279934,1.26526138,119150.0,119140.0,0.01319]
[1759364280228,1.32726138,119150.0,119140.0,0.01319]
[1759364281230,0.0838924,119140.0,119130.0,0.01319]
[1759364281436,0.4446924,119140.0,119130.0,0.01319]
[1759364281935,0.0838994,119130.0,119120.0,0.01611]
[1759364282134,1.2538594,119130.0,119120.0,0.01611]
[1759364283130,1.2788594,119130.0,119120.0,0.01611]
[1759364283539,1.2618594,119130.0,119120.0,0.01611]
[1759364284142,1.32961685,119130.0,119120.0,0.01611]
[1759364284838,1.32957685,119130.0,119120.0,0.01611]
[1759364285337,1.32964903,119130.0,119120.0,0.01611]
[1759364286033,1.32960903,119130.0,119120.0,0.03803]
[1759364288345,1.32960903,119130.0,119120.0,0.01611]
[1759364288744,0.52052903,119130.0,119120.0,0.01611]
[1759364288939,1.32956903,119130.0,119120.0,0.01611]
[1759364289147,1.32952903,119130.0,119120.0,0.03803]
[1759364290748,1.32948903,119130.0,119120.0,0.03803]
[1759364292946,0.52052903,119130.0,119120.0,0.03803]
[1759364293142,1.32948903,119130.0,119120.0,0.03803]
[1759364293347,0.96868903,119130.0,119120.0,0.03803]
[1759364293550,0.96860903,119130.0,119120.0,0.03803]
[1759364294548,0.15972903,119130.0,119120.0,0.41207916]
[1759364294752,0.97046903,119130.0,119120.0,0.41207916]
[1759364295153,0.97046903,119130.0,119120.0,0.03803]
[1759364296061,0.97046903,119130.0,119120.0,0.03511]
[1759364297158,0.16162903,119130.0,119120.0,0.03511]
[1759364297357,0.97042903,119130.0,119120.0,0.03511]
[1759364297855,0.16162903,119130.0,119120.0,1.25386556]
[1759364298159,0.97034903,119130.0,119120.0,1.16995916]
[1759364298458,0.97034903,119130.0,119120.0,0.80915916]
[1759364298951,0.97034903,119130.0,119120.0,0.43511]
[1759364299152,0.97034903,119130.0,119120.0,0.03511]
[1759364299455,1.33114903,119130.0,119120.0,0.03511]
[1759364299757,1.33114903,119130.0,119120.0,0.01319]
[1759364300157,1.33114903,119130.0,119120.0,0.03566]
[1759364300352,1.33114903,119130.0,119120.0,0.43747643]
[1759364300756,1.33114903,119130.0,119120.0,0.41500643]
[1759364301063,1.73296546,119130.0,119120.0,0.01319]
[1759364301361,1.33114903,119130.0,119120.0,0.01319]
[1759364302455,1.73296546,119130.0,119120.0,0.01319]
[1759364302754,0.0839066,119120.0,119110.0,0.04999928]
[1759364302955,0.43106599,119120.0,119110.0,0.45181571]
[1759364303461,0.83288242,119120.0,119110.0,0.02727928]
[1759364304464,0.43106599,119120.0,119110.0,0.02727928]
[1759364304858,0.43106599,119120.0,119110.0,0.04999928]
[1759364305059,0.45506599,119120.0,119110.0,0.04999928]
[1759364305254,0.46206599,119120.0,119110.0,0.04999928]
[1759364306758,0.46206599,119120.0,119110.0,0.02727928]
[1759364306960,1.27034599,119120.0,119110.0,0.02727928]
[1759364307352,1.29100256,119120.0,119110.0,0.02727928]
[1759364307556,1.29096256,119120.0,119110.0,0.04999928]
[1759364307959,0.48272256,119120.0,119110.0,0.04999916]
[1759364308157,1.29092264,119120.0,119110.0,0.04999916]
[1759364308957,1.29088264,119120.0,119110.0,0.04999916]
[1759364309161,1.27022599,119120.0,119110.0,0.04999916]
[1759364309458,1.2908684,119120.0,119110.0,0.45181559]
[1759364309664,0.9300684,119120.0,119110.0,0.85181559]
[1759364309967,1.27018599,119120.0,119110.0,0.85181559]
[1759364310264,1.29086671,119120.0,119110.0,0.85181559]
[1759364311765,1.29086664,119120.0,119110.0,0.85181559]
[1759364312065,1.27018599,119120.0,119110.0,0.85181559]
[1759364312962,0.46206599,119120.0,119110.0,0.85181559]
[1759364313161,1.27006599,119120.0,119110.0,0.85181559]
[1759364318862,1.27006599,119120.0,119110.0,0.44999916]
[1759364319059,1.27006599,119120.0,119110.0,0.85181559]
[1759364319372,1.27006599,119120.0,119110.0,0.04999916]
[1759364319764,1.67188242,119120.0,119110.0,0.02727916]
[1759364320071,1.27006599,119120.0,119110.0,0.02727916]
[1759364320371,1.29073822,119120.0,119110.0,0.02727916]
[1759364320671,2.09255465,119120.0,119110.0,0.01408916]
[1759364320862,2.07188242,119120.0,119110.0,0.01408916]
[1759364321366,1.67006599,119120.0,119110.0,0.01408916]
[1759364321565,2.07188242,119120.0,119110.0,0.01408916]
[1759364321766,1.6925544,119120.0,119110.0,0.01408916]
[1759364322367,1.6920344,119120.0,119110.0,0.01408916]
[1759364323366,1.6919944,119120.0,119110.0,0.01408916]
[1759364323768,1.6919944,119120.0,119110.0,0.00481038]
[1759364323962,0.0839142,119110.0,119100.0,9.637e-05]
[1759364324166,0.83288703,119110.0,119100.0,9.637e-05]
[1759364325172,2.33288703,119110.0,119100.0,9.637e-05]
[1759364325369,2.73988703,119110.0,119100.0,9.637e-05]
[1759364325869,2.75988703,119110.0,119100.0,9.637e-05]
[1759364328470,0.0839283,119090.0,119080.0,0.01292]
[1759364328665,1.2518483,119090.0,119080.0,0.01292]
[1759364329475,1.25194823,119090.0,119080.0,0.01292]
[1759364329671,1.24187207,119090.0,119080.0,0.01292]
[1759364329872,1.25483207,119090.0,119080.0,0.01292]
[1759364330275,2.0174485,119090.0,119080.0,0.01292]
[1759364330577,1.61563207,119090.0,119080.0,0.01292]
[1759364330776,1.61063207,119090.0,119080.0,0.01292]
[1759364331172,0.0839353,119080.0,119070.0,0.07538165]
[1759364331373,0.84655173,119080.0,119070.0,0.07538165]
[1759364331573,0.42563101,119080.0,119070.0,0.09851165]
[1759364332466,0.43363101,119080.0,119070.0,0.09851165]
[1759364332666,0.44263101,119080.0,119070.0,0.09851165]
[1759364332873,1.24955101,119080.0,119070.0,0.09851165]
[1759364333075,1.65136744,119080.0,119070.0,0.09851165]
[1759364333672,1.65136744,119080.0,119070.0,0.07538165]
[1759364334072,1.23590496,119080.0,119070.0,0.07538165]
[1759364334270,2.06578578,119080.0,119070.0,0.06246165]
[1759364334571,1.69668339,119080.0,119070.0,0.01283]
[1759364334766,1.29664339,119080.0,119070.0,0.03596]
[1759364335573,1.28760339,119080.0,119070.0,0.03596]
[1759364335775,1.30060339,119080.0,119070.0,0.09532165]
[1759364335971,0.49380339,119080.0,119070.0,0.09532165]
[1759364336171,1.30060339,119080.0,119070.0,0.09532165]
[1759364336372,0.49380339,119080.0,119070.0,0.01283]
[1759364336675,1.30060339,119080.0,119070.0,0.03596]
[1759364336875,1.30060339,119080.0,119070.0,0.09532165]
[1759364337076,1.30060339,119080.0,119070.0,0.03596]
[1759364337678,0.49380339,119080.0,119070.0,0.03596]
[1759364337880,1.30052339,119080.0,119070.0,0.03596]
[1759364338281,1.60217734,119080.0,119070.0,0.33761395]
[1759364339478,1.60217734,119080.0,119070.0,0.31448395]
[1759364339672,2.00217734,119080.0,119070.0,0.01283]
[1759364339881,2.30383129,119080.0,119070.0,0.01283]
[1759364340084,0.0839423,119070.0,119060.0,0.31457395]
[1759364340276,0.74639625,119070.0,119060.0,0.31457395]
[1759364341281,0.75339625,119070.0,119060.0,0.31457395]
[1759364341476,0.75339625,119070.0,119060.0,0.01292]
[1759364341679,0.73631852,119070.0,119060.0,0.3739356]
[1759364341975,0.76031852,119070.0,119060.0,0.05936165]
[1759364342181,1.16031852,119070.0,119060.0,0.05936165]
[1759364342574,0.0839494,119060.0,119050.0,0.14645051]
[1759364342775,1.2512294,119060.0,119050.0,0.07219165]
[1759364343084,1.55288335,119060.0,119050.0,0.3738456]
[1759364343285,0.0839565,119050.0,119040.0,0.10637831]
[1759364343485,0.42564923,119050.0,119040.0,0.43116226]
[1759364343875,0.72730318,119050.0,119040.0,0.43116226]
[1759364344078,0.78182744,119050.0,119040.0,0.43116226]
[1759364344488,0.48717349,119050.0,119040.0,0.12950831]
[1759364344683,0.48717349,119050.0,119040.0,0.43116226]
[1759364345383,0.78882744,119050.0,119040.0,0.43116226]
[1759364346087,0.81282744,119050.0,119040.0,0.41187281]
[1759364346486,0.81282744,119050.0,119040.0,0.03596]
[1759364346684,0.51117349,119050.0,119040.0,0.03596]
[1759364346889,0.81282744,119050.0,119040.0,0.01283]
[1759364347093,0.81282744,119050.0,119040.0,0.41187281]
[1759364347285,0.81282744,119050.0,119040.0,0.11021886]
[1759364347481,0.81282744,119050.0,119040.0,0.08708886]
[1759364347882,0.81282744,119050.0,119040.0,0.01283]
[1759364348490,0.0839635,119040.0,119030.0,0.01291505]
[1759364348684,1.19181745,119040.0,119030.0,0.314569]
[1759364348889,1.55261745,119040.0,119030.0,0.01291505]
[1759364349287,1.55261745,119040.0,119030.0,0.03604505]
[1759364349687,1.55261745,119040.0,119030.0,0.337699]
[1759364349884,1.55261745,119040.0,119030.0,0.03604505]
[1759364350192,1.55261745,119040.0,119030.0,0.337699]
[1759364350393,1.55961745,119040.0,119030.0,0.337699]
[1759364350592,1.55961745,119040.0,119030.0,0.03604505]
[1759364350793,1.55261745,119040.0,119030.0,0.03604505]
[1759364350993,1.8852714,119040.0,119030.0,8.505e-05]
[1759364351292,0.1070947,119010.0,119000.0,0.03596]
[1759364351480,1.21474865,119010.0,119000.0,0.33761395]
[1759364352096,1.21480832,119010.0,119000.0,0.33761395]
[1759364352286,1.21480832,119010.0,119000.0,0.03596]
[1759364352488,1.57950659,119010.0,119000.0,0.01188028]
[1759364353087,1.88116054,119010.0,119000.0,0.01188028]
[1759364353290,1.57950659,119010.0,119000.0,0.01188028]
[1759364353492,0.1071088,118990.0,118980.0,0.75789432]
[1759364353688,0.90298585,118990.0,118980.0,0.75789432]
[1759364354086,1.26041763,118990.0,118980.0,0.39709432]
[1759364354286,1.32830854,118990.0,118980.0,0.39709432]
[1759364354481,1.32830854,118990.0,118980.0,0.33761395]
[1759364354687,1.34430854,118990.0,118980.0,0.33761395]
[1759364354992,1.35230854,118990.0,118980.0,0.33761395]
[1759364355490,1.35230854,118990.0,118980.0,1.0392679]
[1759364355683,1.35230854,118990.0,118980.0,0.33761395]
[1759364355884,1.35222854,118990.0,118980.0,0.03596]
[1759364356085,0.54634854,118990.0,118980.0,0.03596]
[1759364356390,1.35222854,118990.0,118980.0,0.03596]
[1759364356587,1.35222854,118990.0,118980.0,0.33761395]
[1759364356788,1.62988249,118990.0,118980.0,0.33761395]
[1759364356987,1.34822854,118990.0,118980.0,0.33761395]
[1759364357296,1.35522854,118990.0,118980.0,0.33761395]
[1759364357488,1.35522854,118990.0,118980.0,0.03596]
[1759364357684,1.35522854,118990.0,118980.0,0.33761395]
[1759364357897,0.18854854,118990.0,118980.0,0.03596]
[1759364358200,0.99442854,118990.0,118980.0,0.33761395]
[1759364358390,1.35522854,118990.0,118980.0,0.33761395]
[1759364358595,1.34822854,118990.0,118980.0,0.03596]
[1759364358791,1.64988249,118990.0,118980.0,0.33761395]
[1759364358999,0.1060858,118980.0,118970.0,0.33587395]
[1759364359195,0.4668858,118980.0,118970.0,0.33587395]
[1759364359586,0.1060858,118980.0,118970.0,0.33587395]
[1759364359791,1.2727258,118980.0,118970.0,0.33587395]
[1759364359991,0.9119258,118980.0,118970.0,0.33587395]
[1759364360200,1.2727258,118980.0,118970.0,0.03422]
[1759364360593,1.57437975,118980.0,118970.0,0.33587395]
[1759364360794,1.2727258,118980.0,118970.0,0.33587395]
[1759364360990,0.82796,118980.0,118970.0,0.41988685]
[1759364361297,0.9319658,118980.0,118970.0,0.41988685]
[1759364361498,0.82792,118980.0,118970.0,0.78068685]
[1759364361802,1.2797258,118980.0,118970.0,0.41988685]
[1759364361997,1.2797258,118980.0,118970.0,0.1182329]
[1759364362203,1.58137975,118980.0,118970.0,0.03422]
[1759364362501,1.58137975,118980.0,118970.0,0.33587395]
[1759364362696,1.2797258,118980.0,118970.0,0.33587395]
[1759364363090,1.58137975,118980.0,118970.0,0.33587395]
[1759364363799,1.2797258,118980.0,118970.0,0.33587395]
[1759364364097,0.9189258,118980.0,118970.0,0.41988685]
[1759364364398,0.9119258,118980.0,118970.0,0.1029529]
[1759364364593,0.9319258,118980.0,118970.0,0.40460685]
[1759364364789,0.04208,118980.0,118970.0,0.40460685]
[1759364364995,0.84788,118980.0,118970.0,0.76540685]
[1759364365299,1.2926858,118980.0,118970.0,0.01894]
[1759364365489,1.60765975,118980.0,118970.0,0.00572]
[1759364365694,1.60765975,118980.0,118970.0,0.30737395]
[1759364366096,1.60765975,118980.0,118970.0,0.00572]
[1759364366296,0.9252058,118980.0,118970.0,0.39138685]
[1759364366496,1.60765975,118980.0,118970.0,0.39138685]
[1759364366699,1.61565975,118980.0,118970.0,0.39138685]
[1759364367099,1.60765975,118980.0,118970.0,0.39138685]
[1759364367300,0.04208,118980.0,118970.0,0.40460685]
[1759364367501,0.1060858,118980.0,118970.0,0.40460685]
[1759364367702,0.9188458,118980.0,118970.0,0.40460685]
[1759364367905,0.9318458,118980.0,118970.0,0.32059395]
[1759364368106,1.2926458,118980.0,118970.0,0.32059395]
[1759364368308,0.8478,118980.0,118970.0,0.76540685]
[1759364368502,0.9318058,118980.0,118970.0,0.76540685]
[1759364368703,0.9388058,118980.0,118970.0,0.76540685]
[1759364368906,0.04908,118980.0,118970.0,0.76540685]
[1759364369208,0.027,118980.0,118970.0,1.4670608]
[1759364369596,0.83272,118980.0,118970.0,1.4670608]
[1759364369797,0.83272,118980.0,118970.0,1.52654117]
[1759364370005,0.83268,118980.0,118970.0,1.52654117]
[1759364370405,0.027,118980.0,118970.0,1.52654117]
[1759364370604,0.83268,118980.0,118970.0,1.52654117]
[1759364371202,0.027,118980.0,118970.0,1.52654117]
[1759364371402,0.83264,118980.0,118970.0,1.52654117]
[1759364371708,0.027,118980.0,118970.0,1.52654117]
[1759364371911,0.83264,118980.0,118970.0,1.4670608]
[1759364372206,0.83264,118980.0,118970.0,1.52654117]
[1759364372706,0.027,118980.0,118970.0,1.52654117]
[1759364372904,5.967e-05,119010.0,119000.0,0.1189517]
[1759364373108,5.967e-05,119010.0,119000.0,1.0830596]
[1759364373303,0.67009967,119010.0,119000.0,1.88118639]
[1759364373505,0.67009967,119010.0,119000.0,1.57953244]
[1759364374005,0.70109967,119010.0,119000.0,1.57953244]
[1759364374208,0.75408437,119010.0,119000.0,0.61542454]
[1759364374402,0.78269437,119010.0,119000.0,1.21873244]
[1759364374706,0.79272131,119010.0,119000.0,0.73474074]
[1759364374902,0.0839917,119000.0,118990.0,0.31487395]
[1759364375104,0.1193217,119000.0,118990.0,0.33661395]
[1759364375402,0.1066017,119000.0,118990.0,0.33661395]
[1759364375706,0.9120817,119000.0,118990.0,0.78141265]
[1759364375901,0.9120817,119000.0,118990.0,0.42061265]
[1759364376502,0.9220817,119000.0,118990.0,0.43761265]
[1759364376811,0.9270817,119000.0,118990.0,0.43761265]
[1759364377207,0.1216017,119000.0,118990.0,0.7392666]
[1759364377510,0.9270017,119000.0,118990.0,0.7392666]
[1759364377908,0.9270017,119000.0,118990.0,0.43761265]
[1759364378101,0.9270017,119000.0,118990.0,0.77374731]
[1759364378306,0.9270017,119000.0,118990.0,0.41294731]
[1759364378810,0.9270017,119000.0,118990.0,0.35361395]
[1759364379407,0.9270017,119000.0,118990.0,0.71441395]
[1759364379711,0.9270017,119000.0,118990.0,0.35361395]
[1759364381209,0.9270017,119000.0,118990.0,0.79841275]
[1759364381513,0.9268417,119000.0,118990.0,1.1000667]
[1759364381710,0.9268417,119000.0,118990.0,0.4967588]
[1759364381907,0.015,119000.0,118990.0,1.5000667]
[1759364382111,0.015,119000.0,118990.0,1.89871521]
[1759364382914,0.01336741,119000.0,118990.0,1.59706126]
[1759364383906,5.967e-05,119010.0,119000.0,0.1189517]
[1759364384105,0.10659028,119040.0,119030.0,0.0839706]
[1759364384405,0.93247672,119040.0,119030.0,0.78138455]
[1759364385314,0.9429985,119040.0,119030.0,0.78138455]
[1759364385906,0.9429985,119040.0,119030.0,0.32339395]
[1759364385907,1.3171185,119040.0,119030.0,0.32339395]
[1759364386111,2.03277245,119040.0,119030.0,0.005]
[1759364386818,0.1199006,119030.0,119020.0,0.32339395]
[1759364387114,0.50143842,119030.0,119020.0,0.32339395]
[1759364387316,0.1199076,119020.0,119010.0,0.49199576]
[1759364387509,0.9248676,119020.0,119010.0,0.68419395]
[1759364387710,1.2856676,119020.0,119010.0,0.32339395]
[1759364387906,0.54710048,119020.0,119010.0,0.02209]
[1759364388107,0.10950115,119020.0,119010.0,0.78163855]